fUSD/lending_fUSD_20240217
["ID","MTS","AMOUNT","RATE_DAILY","PERIOD"]
[314287040,1708157443950,-2118.37494538,0.00041061,2]
[314287041,1708157443959,-6224.69585873,0.00041061,4]
[314287042,1708157443969,-156.29488104,0.00041061,2]
[314287043,1708157443978,-14971.21905146,0.00041061,2]
[314287044,1708157443988,-1410.87957634,0.00041061,2]
[314287045,1708157443998,-649.70326211,0.00041061,120]
[314287046,1708157444009,-169.71709592,0.00041061,120]
[314287047,1708157444018,-20009.47953652,0.00041061,2]
[314287048,1708157444027,-155.29370094,0.00041061,2]
[314287049,1708157444037,-306.59704943,0.00041061,120]
[314287050,1708157444046,-701.82634713,0.00041061,30]
[314287051,1708157444055,-151.34673705,0.00041061,30]
[314287052,1708157444065,-158.00946671,0.00041061,60]
[314287053,1708157444074,-437.6563897,0.00041061,14]
[314287054,1708157444084,-199.26055783,0.00041061,30]
[314287055,1708157444094,-5060.35304492,0.00041061,2]
[314287056,1708157444103,-151.0,0.00041061,30]
[314287057,1708157444113,-150.0,0.00041061,30]
[314287058,1708157444123,-472.09255615,0.00041061,30]
[314287059,1708157444132,-155.08301687,0.00041061,2]
[314287060,1708157444142,-68192.0,0.00041061,4]
[314287061,1708157444151,-420.37567499,0.00041061,2]
[314287062,1708157444160,-484.08793418,0.00041061,2]
[314287063,1708157444170,-2504.26815191,0.00041095,2]
[314287064,1708157444179,-506.29499783,0.00041095,2]
[314287065,1708157444189,-156.4,0.00041096,2]
[314287066,1708157444198,-162.20812429,0.00041097,2]
[314287067,1708157444207,-177.0,0.000411,7]
[314287068,1708157444217,-1733.0,0.000411,2]
[314287069,1708157444226,-19933.1387,0.000415,2]
[314287070,1708157444235,-151.98,0.00041553,2]
[314287071,1708157444245,-3378.77425326,0.00041626,5]
[314287072,1708157444254,-177.0,0.00041648,7]
[314287073,1708157444263,-200.0,0.00041661,20]
[314287074,1708157444272,-1000.0,0.00041667,2]
[314287075,1708157444282,-152.0,0.00041735,3]
[314287076,1708157444292,-201.59,0.00041781,2]
[314287077,1708157444302,-154.89,0.000418,4]
[314287078,1708157444311,-153.52,0.000418,4]
[314287079,1708157444320,-153.52,0.000418,4]
[314287080,1708157444329,-153.52,0.000418,4]
[314287081,1708157444339,-153.52,0.000418,4]
[314287082,1708157444348,-153.52,0.000418,4]
[314287083,1708157444357,-153.52,0.000418,4]
[314287084,1708157444367,-153.52,0.000418,4]
[314287085,1708157444376,-153.52,0.000418,4]
[314287086,1708157444385,-153.52,0.000418,4]
[314287087,1708157444395,-153.52,0.000418,4]
[314287088,1708157444404,-153.52,0.000418,4]
[314287089,1708157444413,-153.52,0.000418,4]
[314287090,1708157444422,-153.52,0.000418,4]
[314287091,1708157444431,-153.52,0.000418,4]
[314287092,1708157444440,-153.52,0.000418,4]
[314287093,1708157444449,-153.52,0.000418,4]
[314287094,1708157444459,-153.52,0.000418,4]
[314287095,1708157444468,-153.52,0.000418,4]
[314287096,1708157444477,-153.52,0.000418,4]
[314287097,1708157444487,-153.62677801,0.00041809,13]
[314287098,1708157444496,-205.0,0.00041902,15]
[314287099,1708157444506,-173.51,0.0004191,120]
[314287100,1708157444514,-231.21,0.0004191,120]
[314287101,1708157444524,-391.06524383,0.00042,7]
[314287102,1708157444533,-7464.35666775,0.00042,2]
[314287103,1708157444542,-338.5789,0.00042,59]
[314287104,1708157444552,-20000.0,0.00042,15]
[314287105,1708157444561,-623.26,0.00042092,15]
[314287106,1708157444570,-177.0,0.00042196,7]
[314287107,1708157444579,-461.87,0.00042205,2]
[314287108,1708157444588,-1369.0,0.00042416,2]
[314287109,1708157444598,-2690.0,0.00042416,2]
[314287110,1708157444607,-543.505,0.00042416,2]
[314287111,1708157444616,-456.388,0.00042416,2]
[314287112,1708157444626,-956.618,0.00042416,2]
[314287113,1708157444635,-850.0,0.00042416,2]
[314287114,1708157444644,-710.472,0.00042416,2]
[314287115,1708157444653,-152.177,0.00042416,2]
[314287116,1708157444661,-1949.0,0.00042416,2]
[314287117,1708157444670,-1276.876,0.00042416,2]
[314287118,1708157444679,-350.154,0.00042416,2]
[314287119,1708157444688,-1319.0,0.00042416,2]
[314287120,1708157444698,-982.869,0.00042459,2]
[314287121,1708157444707,-451.615,0.00042459,2]
[314287122,1708157444716,-245.51,0.00042459,2]
[314287123,1708157444725,-1022.794,0.00042459,2]
[314287124,1708157444735,-151.039,0.00042459,2]
[314287125,1708157444744,-1138.0,0.00042459,2]
[314287126,1708157444754,-421.667,0.00042459,2]
[314287127,1708157444763,-2871.0,0.00042464,2]
[314287128,1708157444772,-324.602,0.00042464,2]
[314287129,1708157444781,-399.937,0.00042464,2]
[314287130,1708157444790,-454.0,0.00042464,2]
[314287131,1708157444799,-7419.0,0.00042487,2]
[314287132,1708157444808,-19853.0,0.00042487,2]
[314287133,1708157444817,-38388.357,0.00042487,2]
[314287134,1708157444827,-2290.0,0.00042487,2]
[314287135,1708157444836,-4099.0,0.00042487,2]
[314287136,1708157444845,-2916.044,0.00042487,2]
[314287137,1708157444854,-8199.896,0.00042487,2]
[314287138,1708157444863,-2928.0,0.00042487,2]
[314287139,1708157444872,-150.0,0.00042487,2]
[314287140,1708157444881,-1079.56,0.00042487,2]
[314287141,1708157444890,-2000.0,0.000425,2]
[314287142,1708157444899,-200.0,0.00042525,20]
[314287143,1708157444908,-1612.58,0.00042545,2]
[314287144,1708157444917,-177.0,0.00042744,7]
[314287145,1708157444928,-730.0589355,0.00042897,10]
[314287146,1708157444937,-158.23203844,0.00042964,30]
[314287147,1708157444945,-153.62677801,0.00042991,18]
[314287148,1708157444954,-3378.77425326,0.00043205,5]
[314287149,1708157444963,-177.0,0.00043292,7]
[314287150,1708157444972,-205.0,0.00043294,19]
[314287151,1708157444981,-407.09584175,0.00043333,2]
[314287152,1708157444990,-200.0,0.00043389,20]
[314287153,1708157444999,-214.72550425,0.00043399,4]
[314287154,1708157445009,-214.72550425,0.00043399,4]
[314287155,1708157445019,-254.45312673,0.00043399,4]
[314287156,1708157445028,-214.72550425,0.00043399,4]
[314287157,1708157445037,-254.45312673,0.00043399,4]
[314287158,1708157445046,-254.45312673,0.00043399,4]
[314287159,1708157445055,-3153163.0760812,0.000434,3]
[314287160,1708157445064,-167.45,0.000434,7]
[314287161,1708157445073,-482.10180201,0.00043481,60]
[314287162,1708157445082,-1000.0,0.00043599,2]
[314287163,1708157445092,-461.87,0.00043677,2]
[314287164,1708157445101,-177.0,0.0004384,7]
[314287165,1708157445110,-150.0,0.00043889,2]
[314287166,1708157445119,-167.8862141,0.00043937,30]
[314287167,1708157445128,-7288.36148334,0.00044,8]
[314287168,1708157445137,-153.62677801,0.00044173,22]
[314287169,1708157445146,-166.05101382,0.00044187,30]
[314287170,1708157445155,-200.0,0.00044254,30]
[314287171,1708157445164,-14288.5,0.00044319,2]
[314287172,1708157445176,-19999.99,0.00044319,2]
[314287173,1708157445185,-177.0,0.00044388,7]
[314287174,1708157445194,-3000.0,0.000444,2]
[314287175,1708157445204,-205.0,0.00044686,22]
[314287176,1708157445212,-151.98,0.00044749,2]
[314287177,1708157445222,-3378.77425326,0.00044784,5]
[314287178,1708157445232,-1612.58,0.00044809,2]
[314287179,1708157445241,-2000.0,0.000449,2]
[314287180,1708157445250,-663.59417096,0.000449,2]
[314287181,1708157445259,-177.0,0.00044936,7]
[314287182,1708157445268,-39498.4927,0.00044999,2]
[314287183,1708157445278,-100000.0,0.00044999,2]
[314287184,1708157445287,-1000.0,0.00044999,2]
[314287185,1708157445296,-52219.1742,0.00044999,2]
[314287186,1708157445305,-16121.5089,0.00044999,2]
[314287187,1708157445315,-18211.22257101,0.00044999,2]
[314287188,1708157445324,-4833.78305591,0.00045,17]
[314287189,1708157445333,-29532.21986495,0.00045,30]
[314287190,1708157445342,-28689.40793652,0.00045,10]
[314287191,1708157445351,-155.0,0.00045,7]
[314287192,1708157445361,-154.89,0.00045,5]
[314287193,1708157445370,-154.89,0.00045,5]
[314287194,1708157445382,-153.52,0.00045,5]
[314287195,1708157445391,-153.52,0.00045,5]
[314287196,1708157445400,-153.52,0.00045,5]
[314287197,1708157445410,-153.52,0.00045,5]
[314287198,1708157445418,-153.52,0.00045,5]
[314287199,1708157445427,-153.52,0.00045,5]
[314287200,1708157445437,-153.52,0.00045,5]
[314287201,1708157445445,-153.52,0.00045,5]
[314287202,1708157445565,-153.52,0.00045,5]
[314287203,1708157445574,-153.52,0.00045,5]
[314287204,1708157445584,-153.52,0.00045,5]
[314287205,1708157445593,-153.52,0.00045,5]
[314287206,1708157445602,-153.52,0.00045,5]
[314287207,1708157445611,-153.52,0.00045,5]
[314287208,1708157445620,-153.52,0.00045,5]
[314287209,1708157445629,-153.52,0.00045,5]
[314287210,1708157445638,-153.52,0.00045,5]
[314287211,1708157445647,-153.52,0.00045,5]
[314287212,1708157445656,-153.52,0.00045,5]
[314287213,1708157445665,-800.0,0.00045118,20]
[314287214,1708157445674,-200.0,0.00045118,30]
[314287215,1708157445683,-200.0,0.00045118,30]
[314287216,1708157445692,-201.8018,0.0004514,30]
[314287217,1708157445701,-461.87,0.00045149,2]
[314287218,1708157445710,-2000.0,0.000452,2]
[314287219,1708157445719,-201.59,0.00045205,2]
[314287220,1708157445730,-153.62677801,0.00045355,27]
[314287221,1708157445739,-1290.966,0.00045416,2]
[314287222,1708157445749,-2690.0,0.00045416,2]
[314287223,1708157445758,-953.0,0.00045416,2]
[314287224,1708157445766,-842.0,0.00045416,2]
[314287225,1708157445776,-708.0,0.00045416,2]
[314287226,1708157445785,-1949.0,0.00045416,2]
[314287227,1708157445793,-1255.0,0.00045416,2]
[314287228,1708157445802,-216.0,0.00045416,2]
[314287229,1708157445812,-1231.0,0.00045416,2]
[314287230,1708157445821,-858.0,0.00045459,2]
[314287231,1708157445829,-429.0,0.00045459,2]
[314287232,1708157445839,-237.0,0.00045459,2]
[314287233,1708157445849,-1005.0,0.00045459,2]
[314287234,1708157445858,-150.0,0.00045459,2]
[314287235,1708157445868,-1138.0,0.00045459,2]
[314287236,1708157445877,-343.0,0.00045459,2]
[314287237,1708157445886,-2871.0,0.00045464,2]
[314287238,1708157445895,-321.0,0.00045464,2]
[314287239,1708157445905,-389.0,0.00045464,2]
[314287240,1708157445915,-454.0,0.00045464,2]
[314287241,1708157445926,-177.0,0.00045484,30]
[314287242,1708157445936,-7419.0,0.00045487,2]
[314287243,1708157445946,-19853.0,0.00045487,2]
[314287244,1708157445955,-2290.0,0.00045487,2]
[314287245,1708157445964,-4099.0,0.00045487,2]
[314287246,1708157445974,-8166.0,0.00045487,2]
[314287247,1708157445983,-2928.0,0.00045487,2]
[314287248,1708157445992,-1037.0,0.00045487,2]
[314287249,1708157446001,-922.3,0.000455,30]
[314287250,1708157446011,-898.0,0.000455,30]
[314287251,1708157446020,-1000.0,0.000455,30]
[314287252,1708157446029,-347.0,0.000455,30]
[314287253,1708157446038,-167.45,0.000458,7]
[314287254,1708157446048,-152.0,0.00045809,4]
[314287255,1708157446057,-150.0,0.00045816,2]
[314287256,1708157446066,-1865.0,0.00045816,2]
[314287257,1708157446075,-623.26,0.00045828,15]
[314287258,1708157446085,-181.45034987,0.00045882,30]
[314287259,1708157446094,-200.0,0.00045982,30]
[314287260,1708157446104,-177.0,0.00046032,30]
[314287261,1708157446113,-166.05101382,0.00046043,30]
[314287262,1708157446123,-158.23203844,0.00046052,30]
[314287263,1708157446133,-205.0,0.00046078,25]
[314287264,1708157446142,-179.021788,0.00046118,87]
[314287265,1708157446151,-3378.77425326,0.00046363,5]
[314287266,1708157446161,-179.021788,0.00046418,87]
[314287267,1708157446183,-151.0,0.0004642,2]
[314287268,1708157446193,-158.23203844,0.00046465,30]
[314287269,1708157446203,-153.62677801,0.00046536,31]
[314287270,1708157446212,-327.0875,0.00046575,7]
[314287271,1708157446222,-150.0,0.00046576,7]
[314287272,1708157446232,-177.0,0.00046579,30]
[314287273,1708157446242,-1733.0,0.000466,2]
[314287274,1708157446251,-179.021788,0.00046718,88]
[314287275,1708157446262,-150.0,0.00046764,7]
[314287276,1708157446271,-200.0,0.00046846,30]
[314287277,1708157446281,-6389.07,0.00046849,120]
[314287278,1708157446291,-1093.13,0.00046849,120]
[314287279,1708157446301,-150.0,0.0004688,7]
[314287280,1708157446311,-150.0,0.00046949,7]
[314287281,1708157446320,-166.05101382,0.0004697,30]
[314287282,1708157446331,-150.0,0.00046992,7]
[314287283,1708157446341,-4000.0,0.00047,2]
[314287284,1708157446351,-391.96093238,0.00047009,7]
[314287285,1708157446361,-150.0,0.00047028,7]
[314287286,1708157446370,-150.0,0.00047043,7]
[314287287,1708157446380,-150.0,0.0004705,7]
[314287288,1708157446390,-1612.58,0.00047073,2]
[314287289,1708157446399,-150.0,0.00047078,7]
[314287290,1708157446408,-179.021788,0.00047118,93]
[314287291,1708157446418,-177.0,0.00047127,30]
[314287292,1708157446427,-150.0,0.00047153,7]
[314287293,1708157446437,-150.0,0.00047176,7]
[314287294,1708157446446,-302.0,0.000472,4]
[314287295,1708157446455,-300.0,0.00047206,7]
[314287296,1708157446465,-1500.0,0.00047223,7]
[314287297,1708157446474,-150.0,0.00047232,7]
[314287298,1708157446484,-150.0,0.00047302,7]
[314287299,1708157446494,-150.0,0.00047346,7]
[314287300,1708157446503,-150.0,0.00047348,7]
[314287301,1708157446513,-214.72550425,0.00047396,7]
[314287302,1708157446522,-254.45312673,0.00047396,7]
[314287303,1708157446532,-654.175,0.00047397,7]
[314287304,1708157446541,-150.0,0.000474,7]
[314287305,1708157446551,-179.021788,0.00047418,93]
[314287306,1708157446560,-205.0,0.00047471,29]
[314287307,1708157446570,-150.0,0.00047485,7]
[314287308,1708157446579,-150.0,0.00047584,7]
[314287309,1708157446589,-150.0,0.00047605,7]
[314287310,1708157446598,-150.0,0.00047612,7]
[314287311,1708157446607,-150.0,0.00047617,7]
[314287312,1708157446617,-150.0,0.00047627,7]
[314287313,1708157446626,-150.0,0.00047662,7]
[314287314,1708157446635,-1500.0,0.00047663,7]
[314287315,1708157446644,-177.0,0.00047675,30]
[314287316,1708157446653,-292.999675,0.00047675,7]
[314287317,1708157446663,-150.0,0.00047682,7]
[314287318,1708157446672,-2000.0,0.000477,2]
[314287319,1708157446681,-200.0,0.00047709,30]
[314287320,1708157446691,-300.0,0.00047715,7]
[314287321,1708157446703,-235.11328442,0.00047717,7]
[314287322,1708157446713,-179.021788,0.00047718,93]
[314287323,1708157446723,-153.62677801,0.00047718,35]
[314287324,1708157446733,-150.0,0.00047722,7]
[314287325,1708157446742,-150.0,0.00047723,7]
[314287326,1708157446753,-150.0,0.00047731,7]
[314287327,1708157446762,-189.7217959,0.00047759,7]
[314287328,1708157446773,-150.0,0.0004778,7]
[314287329,1708157446783,-2839.788437,0.000478,30]
[314287330,1708157446792,-17307.752703,0.000478,30]
[314287331,1708157446802,-69285.354691,0.000478,30]
[314287332,1708157446828,-166.05101382,0.00047809,30]
[314287333,1708157446851,-150.0,0.00047813,7]
[314287334,1708157446861,-418.80933749,0.00047816,5]
[314287335,1708157446871,-1500.0,0.00047829,7]
[314287336,1708157446881,-1500.0,0.00047835,7]
[314287337,1708157446891,-300.0,0.00047855,7]
[314287338,1708157446900,-300.0,0.0004786,7]
[314287339,1708157446909,-1103.81052363,0.00047882,7]
[314287340,1708157446919,-150.0,0.00047882,7]
[314287341,1708157446932,-300.0,0.00047894,7]
[314287342,1708157446941,-2000.0,0.000479,2]
[314287343,1708157446950,-1500.0,0.00047911,7]
[314287344,1708157446959,-150.0,0.00047931,7]
[314287345,1708157446970,-3378.77425326,0.00047942,5]
[314287346,1708157446981,-915.91,0.00047945,2]
[314287347,1708157446992,-811.02,0.00047945,2]
[314287348,1708157447003,-405.51,0.00047945,2]
[314287349,1708157447014,-915.91,0.00047945,2]
[314287350,1708157447025,-1831.82,0.00047945,2]
[314287351,1708157447035,-816.72,0.00047945,2]
[314287352,1708157447045,-915.91,0.00047945,2]
[314287353,1708157447055,-405.51,0.00047945,2]
[314287354,1708157447066,-405.51,0.00047945,2]
[314287355,1708157447076,-1938.27381,0.00047945,17]
[314287356,1708157447086,-151.98,0.00047945,2]
[314287357,1708157447096,-300.0,0.00047949,7]
[314287358,1708157447106,-1500.0,0.0004796,7]
[314287359,1708157447116,-19091.63634988,0.00047961,17]
[314287360,1708157447127,-150.0,0.00047993,7]
[314287361,1708157447136,-604.0,0.00047993,7]
[314287362,1708157447146,-300.0,0.00047994,7]
[314287363,1708157447156,-15655.37453229,0.00048,30]
[314287364,1708157447166,-167.45,0.00048,7]
[314287365,1708157447177,-150.0,0.00048007,7]
[314287366,1708157447187,-150.0,0.0004804,7]
[314287367,1708157447197,-150.0,0.00048052,7]
[314287368,1708157447207,-150.0,0.00048063,7]
[314287369,1708157447216,-150.0,0.00048066,7]
[314287370,1708157447226,-150.0,0.00048103,7]
[314287371,1708157447240,-150.0,0.00048118,7]
[314287372,1708157447249,-150.0,0.00048122,7]
[314287373,1708157447261,-150.0,0.00048122,7]
[314287374,1708157447272,-300.0,0.00048126,7]
[314287375,1708157447282,-150.0,0.00048142,7]
[314287376,1708157447293,-150.0,0.00048154,7]
[314287377,1708157447303,-150.0,0.00048161,7]
[314287378,1708157447313,-150.0,0.00048163,7]
[314287379,1708157447322,-166.05101382,0.00048168,30]
[314287380,1708157447333,-150.0,0.0004818,7]
[314287381,1708157447342,-150.0,0.00048197,7]
[314287382,1708157447352,-154.89,0.000482,6]
[314287383,1708157447361,-154.89,0.000482,6]
[314287384,1708157447371,-153.52,0.000482,6]
[314287385,1708157447380,-153.52,0.000482,6]
[314287386,1708157447389,-153.52,0.000482,6]
[314287387,1708157447398,-153.52,0.000482,6]
[314287388,1708157447408,-153.52,0.000482,6]
[314287389,1708157447418,-153.52,0.000482,6]
[314287390,1708157447427,-153.52,0.000482,6]
[314287391,1708157447437,-153.52,0.000482,6]
[314287392,1708157447446,-153.52,0.000482,6]
[314287393,1708157447455,-153.52,0.000482,6]
[314287394,1708157447464,-153.52,0.000482,6]
[314287395,1708157447473,-153.52,0.000482,6]
[314287396,1708157447487,-153.52,0.000482,6]
[314287397,1708157447496,-153.52,0.000482,6]
[314287398,1708157447505,-153.52,0.000482,6]
[314287399,1708157447514,-153.52,0.000482,6]
[314287400,1708157447524,-153.52,0.000482,6]
[314287401,1708157447533,-153.52,0.000482,6]
[314287402,1708157447542,-153.52,0.000482,6]
[314287403,1708157447551,-150.0,0.00048207,7]
[314287404,1708157447560,-150.0,0.00048214,7]
[314287405,1708157447570,-981.2625,0.00048219,7]
[314287406,1708157447579,-177.0,0.00048223,30]
[314287407,1708157447589,-150.0,0.00048239,7]
[314287408,1708157447599,-150.0,0.00048244,7]
[314287409,1708157447608,-300.0,0.00048247,7]
[314287410,1708157447618,-150.0,0.0004828,7]
[314287411,1708157447627,-150.0,0.00048285,7]
[314287412,1708157447637,-150.0,0.00048298,7]
[314287413,1708157447646,-150.0,0.00048298,7]
[314287414,1708157447655,-150.0,0.00048304,7]
[314287415,1708157447801,-150.0,0.0004831,7]
[314287416,1708157447811,-150.0,0.00048314,7]
[314287417,1708157447820,-150.0,0.00048341,7]
[314287418,1708157447830,-150.0,0.00048344,7]
[314287419,1708157447839,-8192.37762161,0.0004835,3]
[314287420,1708157447849,-150.0,0.00048402,7]
[314287421,1708157447858,-150.0,0.00048409,7]
[314287422,1708157447867,-150.0,0.00048411,7]
[314287423,1708157447877,-2468.541,0.00048416,2]
[314287424,1708157447886,-953.0,0.00048416,2]
[314287425,1708157447895,-842.0,0.00048416,2]
[314287426,1708157447904,-708.0,0.00048416,2]
[314287427,1708157447913,-1949.0,0.00048416,2]
[314287428,1708157447922,-1255.0,0.00048416,2]
[314287429,1708157447935,-216.0,0.00048416,2]
[314287430,1708157447944,-1231.0,0.00048416,2]
[314287431,1708157447954,-179.021788,0.00048418,93]
[314287432,1708157447963,-150.0,0.00048425,7]
[314287433,1708157447972,-150.0,0.00048432,7]
[314287434,1708157447982,-166.05101382,0.0004845,30]
[314287435,1708157447991,-151.67358367,0.00048451,7]
[314287436,1708157448001,-150.0,0.00048456,7]
[314287437,1708157448010,-1500.0,0.00048456,7]
[314287438,1708157448019,-858.0,0.00048459,2]
[314287439,1708157448029,-429.0,0.00048459,2]
[314287440,1708157448038,-237.0,0.00048459,2]
[314287441,1708157448047,-1005.0,0.00048459,2]
[314287442,1708157448057,-1138.0,0.00048459,2]
[314287443,1708157448066,-343.0,0.00048459,2]
[314287444,1708157448076,-150.0,0.0004846,7]
[314287445,1708157448085,-1150.55930156,0.00048461,7]
[314287446,1708157448095,-2871.0,0.00048464,2]
[314287447,1708157448104,-321.0,0.00048464,2]
[314287448,1708157448113,-160.749,0.00048464,2]
[314287449,1708157448122,-150.0,0.00048464,7]
[314287450,1708157448133,-150.0,0.00048466,7]
[314287451,1708157448142,-1500.0,0.00048468,7]
[314287452,1708157448152,-150.0,0.00048473,7]
[314287453,1708157448161,-150.0,0.00048475,7]
[314287454,1708157448171,-150.0,0.00048479,7]
[314287455,1708157448181,-2129.47855,0.0004848,42]
[314287456,1708157448190,-150.0,0.00048481,7]
[314287457,1708157448200,-7419.0,0.00048487,2]
[314287458,1708157448210,-19853.0,0.00048487,2]
[314287459,1708157448219,-2290.0,0.00048487,2]
[314287460,1708157448228,-285.4,0.00048487,2]
[314287461,1708157448240,-8166.0,0.00048487,2]
[314287462,1708157448249,-2928.0,0.00048487,2]
[314287463,1708157448258,-1037.0,0.00048487,2]
[314287464,1708157448267,-25997.55481538,0.0004849,2]
[314287465,1708157448277,-150.0,0.00048493,2]
[314287466,1708157448286,-150.0,0.00048494,7]
[314287467,1708157448295,-150.0,0.00048495,7]
[314287468,1708157448305,-150.0,0.00048496,7]
[314287469,1708157448314,-179.021788,0.00048498,94]
[314287470,1708157448324,-150.0,0.00048503,7]
[314287471,1708157448333,-150.0,0.00048509,7]
[314287472,1708157448342,-150.0,0.00048511,7]
[314287473,1708157448352,-150.0,0.00048511,7]
[314287474,1708157448361,-150.0,0.00048514,2]
[314287475,1708157448370,-150.0,0.0004852,7]
[314287476,1708157448379,-150.0,0.00048522,7]
[314287477,1708157448388,-150.0,0.00048528,7]
[314287478,1708157448398,-150.0,0.0004853,7]
[314287479,1708157448407,-150.0,0.00048534,7]
[314287480,1708157448417,-1500.0,0.00048551,7]
[314287481,1708157448426,-150.0,0.00048555,7]
[314287482,1708157448436,-150.0,0.00048556,7]
[314287483,1708157448446,-150.0,0.00048556,7]
[314287484,1708157448455,-150.0,0.00048561,7]
[314287485,1708157448464,-150.0,0.00048561,7]
[314287486,1708157448474,-150.0,0.00048564,7]
[314287487,1708157448484,-150.0,0.00048572,7]
[314287488,1708157448493,-800.0,0.00048573,20]
[314287489,1708157448502,-200.0,0.00048573,10]
[314287490,1708157448512,-200.0,0.00048573,30]
[314287491,1708157448521,-200.0,0.00048573,30]
[314287492,1708157448530,-150.0,0.00048584,7]
[314287493,1708157448541,-300.0,0.00048587,7]
[314287494,1708157448550,-150.0,0.00048594,7]
[314287495,1708157448559,-1500.0,0.00048594,7]
[314287496,1708157448568,-150.0,0.00048602,7]
[314287497,1708157448577,-150.0,0.00048603,7]
[314287498,1708157448587,-300.0,0.00048612,7]
[314287499,1708157448596,-150.0,0.00048616,7]
[314287500,1708157448606,-150.0,0.00048619,7]
[314287501,1708157448615,-1500.0,0.00048623,7]
[314287502,1708157448625,-300.0,0.00048624,7]
[314287503,1708157448634,-150.0,0.00048625,7]
[314287504,1708157448644,-150.0,0.00048636,7]
[314287505,1708157448653,-150.0,0.0004864,7]
[314287506,1708157448663,-150.0,0.00048641,7]
[314287507,1708157448673,-150.0,0.00048658,7]
[314287508,1708157448682,-150.0,0.00048667,7]
[314287509,1708157448693,-150.0,0.00048685,7]
[314287510,1708157448702,-150.0,0.00048687,7]
[314287511,1708157448711,-300.0,0.00048689,7]
[314287512,1708157448720,-150.0,0.00048706,7]
[314287513,1708157448730,-218.45652181,0.00048717,30]
[314287514,1708157448740,-500.0,0.00048721,2]
[314287515,1708157448750,-500.0,0.00048721,2]
[314287516,1708157448760,-500.0,0.00048721,2]
[314287517,1708157448769,-289.0985,0.00048721,2]
[314287518,1708157448779,-1000.0,0.00048721,2]
[314287519,1708157448789,-1000.0,0.00048721,2]
[314287520,1708157448798,-1000.0,0.00048721,2]
[314287521,1708157448807,-1000.0,0.00048721,2]
[314287522,1708157448817,-1000.0,0.00048721,2]
[314287523,1708157448827,-1000.0,0.00048721,2]
[314287524,1708157448836,-1000.0,0.00048721,2]
[314287525,1708157448846,-1000.0,0.00048721,2]
[314287526,1708157448855,-1000.0,0.00048721,2]
[314287527,1708157448864,-434.9416,0.00048721,2]
[314287528,1708157448874,-150.0,0.00048724,7]
[314287529,1708157448883,-2129.47856,0.0004873,43]
[314287530,1708157448893,-150.0,0.00048748,7]
[314287531,1708157448902,-150.0,0.00048752,7]
[314287532,1708157448912,-150.0,0.00048759,7]
[314287533,1708157448923,-150.0,0.00048767,7]
[314287534,1708157448933,-150.0,0.0004877,7]
[314287535,1708157448942,-177.0,0.00048771,30]
[314287536,1708157448951,-150.0,0.00048774,7]
[314287537,1708157448960,-200000.0,0.00048778,30]
[314287538,1708157448970,-150.0,0.00048787,7]
[314287539,1708157448979,-150.0,0.00048797,7]